[Event "FIDE U16 Olympiad_boards_81-124"]
[Site "Eindhoven, Netherlands"]
[Date "2023.08.14"]
[Round "3.28"]
[White "Zuri, Tatiina"]
[Black "Gikandi, Bernice Wambui"]
[Result "0-1"]
[TimeControl "45min+10sec"]
[WhiteElo "1297"]
[BlackElo "1179"]

1. Nf3 {[%clk 00:45:16]} {[%emt 00:00:03]} d5 {[%clk 00:45:11]} {[%emt
00:00:10]} 2. g3 {[%clk 00:45:20]} {[%emt 00:00:05]} Nf6 {[%clk 00:45:01]}
{[%emt 00:00:20]} 3. Bg2 {[%clk 00:45:23]} {[%emt 00:00:06]} c6 {[%clk
00:45:04]} {[%emt 00:00:07]} 4. O-O {[%clk 00:45:27]} {[%emt 00:00:07]} e6
{[%clk 00:45:07]} {[%emt 00:00:07]} 5. d3 {[%clk 00:45:27]} {[%emt 00:00:10]}
Be7 {[%clk 00:45:12]} {[%emt 00:00:05]} 6. Nbd2 {[%clk 00:45:17]} {[%emt
00:00:20]} O-O {[%clk 00:45:17]} {[%emt 00:00:05]} 7. e4 {[%clk 00:45:18]}
{[%emt 00:00:08]} b5 {[%clk 00:44:53]} {[%emt 00:00:35]} 8. e5 {[%clk
00:45:00]} {[%emt 00:00:28]} Nfd7 {[%clk 00:44:59]} {[%emt 00:00:04]} 9. d4
{[%clk 00:45:07]} {[%emt 00:00:03]} Bb7 {[%clk 00:44:23]} {[%emt 00:00:46]} 10.
c3 {[%clk 00:44:28]} {[%emt 00:00:50]} a6 {[%clk 00:44:13]} {[%emt 00:00:19]}
11. Ne1 {[%clk 00:41:57]} {[%emt 00:02:41]} Re8 {[%clk 00:40:10]} {[%emt
00:04:14]} 12. f4 {[%clk 00:41:32]} {[%emt 00:00:34]} Nf8 {[%clk 00:39:39]}
{[%emt 00:00:41]} 13. g4 {[%clk 00:37:21]} {[%emt 00:04:21]} c5 {[%clk
00:39:30]} {[%emt 00:00:19]} 14. f5 {[%clk 00:33:58]} {[%emt 00:03:33]} Nbd7
{[%clk 00:38:17]} {[%emt 00:01:23]} 15. Qf3 {[%clk 00:26:38]} {[%emt 00:07:31]}
Qb6 {[%clk 00:37:12]} {[%emt 00:01:14]} 16. Nb3 {[%clk 00:25:14]} {[%emt
00:01:33]} c4 {[%clk 00:34:59]} {[%emt 00:02:23]} 17. Nd2 {[%clk 00:25:10]}
{[%emt 00:00:15]} Nxe5 {[%clk 00:33:13]} {[%emt 00:01:56]} 18. Qg3 {[%clk
00:23:47]} {[%emt 00:01:33]} Ned7 {[%clk 00:32:43]} {[%emt 00:00:40]} 19. g5
{[%clk 00:18:58]} {[%emt 00:04:59]} Bd6 {[%clk 00:32:28]} {[%emt 00:00:24]} 20.
Qf2 {[%clk 00:16:06]} {[%emt 00:03:03]} e5 {[%clk 00:31:54]} {[%emt 00:00:44]}
21. Kh1 {[%clk 00:13:44]} {[%emt 00:02:32]} exd4 {[%clk 00:31:12]} {[%emt
00:00:52]} 22. f6 {[%clk 00:11:29]} {[%emt 00:02:25]} dxc3 {[%clk 00:30:34]}
{[%emt 00:00:48]} 23. fxg7 {[%clk 00:11:14]} {[%emt 00:00:25]} Qxf2 {[%clk
00:30:30]} {[%emt 00:00:14]} 24. gxf8=Q+ {[%emt 00:01:10]} Kxf8 {[%clk
00:30:27]} {[%emt 00:00:10]} 25. Rxf2 {[%clk 00:09:10]} {[%emt 00:01:17]} Rxe1+
{[%clk 00:30:34]} {[%emt 00:00:03]} 26. Nf1 {[%clk 00:08:59]} {[%emt 00:00:21]}
Bc5 {[%clk 00:30:22]} {[%emt 00:00:23]} 27. Rf5 {[%clk 00:08:33]} {[%emt
00:00:35]} cxb2 {[%clk 00:30:14]} {[%emt 00:00:19]} 28. Bxb2 {[%clk 00:08:29]}
{[%emt 00:00:14]} Rxa1 {[%clk 00:30:20]} {[%emt 00:00:02]} 29. Bxa1 {[%clk
00:08:37]} {[%emt 00:00:02]} Nb6 {[%clk 00:28:38]} {[%emt 00:01:53]} 30. Re5
{[%clk 00:07:06]} {[%emt 00:01:41]} Re8 {[%clk 00:27:50]} {[%emt 00:00:58]} 31.
Rf5 {[%clk 00:06:53]} {[%emt 00:00:23]} Re1 {[%clk 00:27:09]} {[%emt 00:00:50]}
32. Bf6 {[%clk 00:06:25]} {[%emt 00:00:39]} Bc8 {[%clk 00:26:20]} {[%emt
00:00:59]} 33. Rf4 {[%clk 00:06:04]} {[%emt 00:00:32]} Be7 {[%clk 00:26:01]}
{[%emt 00:00:27]} 34. Rh4 {[%clk 00:04:43]} {[%emt 00:01:32]} Kg8 {[%clk
00:24:12]} {[%emt 00:01:59]} 35. Rh6 {[%clk 00:04:11]} {[%emt 00:00:42]} Bf5
{[%clk 00:23:23]} {[%emt 00:00:59]} 36. Bxe7 {[%clk 00:04:04]} {[%emt
00:00:18]} Rxe7 {[%clk 00:23:15]} {[%emt 00:00:17]} 37. Rxb6 {[%clk 00:04:11]}
{[%emt 00:00:03]} c3 {[%clk 00:21:34]} {[%emt 00:01:51]} 38. Bxd5 {[%clk
00:02:23]} {[%emt 00:01:58]} c2 {[%clk 00:21:08]} {[%emt 00:00:36]} 39. Rc6
{[%clk 00:02:30]} {[%emt 00:00:03]} Re1 {[%clk 00:21:05]} {[%emt 00:00:14]} 40.
Rf6 {[%clk 00:01:31]} {[%emt 00:01:09]} Rxf1+ {[%clk 00:20:58]} {[%emt
00:00:16]} 41. Kg2 {[%clk 00:01:34]} {[%emt 00:00:08]} Rg1+ {[%clk 00:20:59]}
{[%emt 00:00:08]} 42. Kf2 {[%clk 00:01:11]} {[%emt 00:00:33]} c1=Q {[%clk
00:20:40]} {[%emt 00:00:29]} 43. Rxf7 {[%clk 00:00:57]} {[%emt 00:00:24]} Qe1+
{[%clk 00:20:42]} {[%emt 00:00:08]} 44. Kf3 {[%clk 00:01:02]} {[%emt 00:00:05]}
Rf1+ {[%clk 00:20:47]} {[%emt 00:00:05]} 45. Kg2 {[%clk 00:00:53]} {[%emt
00:00:19]} Qf2# {[%clk 00:20:54]} {[%emt 00:00:02]} 0-1

[Event "FIDE U16 Olympiad_boards_81-124"]
[Site "Eindhoven, Netherlands"]
[Date "2023.08.14"]
[Round "3.29"]
[White "Chunsukon, Viritpol"]
[Black "Cauchi, Noah"]
[Result "1-0"]
[TimeControl "45min+10sec"]
[WhiteElo "1542"]
[BlackElo "1530"]

1. e4 {[%clk 00:45:17]} {[%emt 00:00:02]} c6 {[%clk 00:45:19]} {[%emt
00:00:02]} 2. d4 {[%clk 00:45:22]} {[%emt 00:00:05]} d5 {[%clk 00:45:27]}
{[%emt 00:00:02]} 3. exd5 {[%clk 00:45:30]} {[%emt 00:00:02]} cxd5 {[%clk
00:45:34]} {[%emt 00:00:03]} 4. c4 {[%clk 00:45:34]} {[%emt 00:00:05]} Nf6
{[%clk 00:45:41]} {[%emt 00:00:03]} 5. Nc3 {[%clk 00:45:41]} {[%emt 00:00:04]}
Nc6 {[%clk 00:45:42]} {[%emt 00:00:09]} 6. Nf3 {[%clk 00:45:49]} {[%emt
00:00:02]} Bg4 {[%clk 00:45:46]} {[%emt 00:00:05]} 7. cxd5 {[%clk 00:45:57]}
{[%emt 00:00:02]} Nxd5 {[%clk 00:45:53]} {[%emt 00:00:03]} 8. Qb3 {[%clk
00:46:05]} {[%emt 00:00:03]} Bxf3 {[%clk 00:45:55]} {[%emt 00:00:07]} 9. gxf3
{[%clk 00:46:14]} {[%emt 00:00:01]} e6 {[%clk 00:45:42]} {[%emt 00:00:24]} 10.
Qxb7 {[%clk 00:46:19]} {[%emt 00:00:04]} Nxd4 {[%clk 00:45:50]} {[%emt
00:00:02]} 11. Bb5+ {[%clk 00:46:28]} {[%emt 00:00:02]} Nxb5 {[%clk 00:45:56]}
{[%emt 00:00:04]} 12. Qc6+ {[%clk 00:46:36]} {[%emt 00:00:02]} Ke7 {[%clk
00:45:07]} {[%emt 00:00:59]} 13. Qxb5 {[%clk 00:46:18]} {[%emt 00:00:28]} Qd7
{[%clk 00:44:08]} {[%emt 00:01:09]} 14. Nxd5+ {[%clk 00:46:14]} {[%emt
00:00:14]} Qxd5 {[%clk 00:44:07]} {[%emt 00:00:11]} 15. Qxd5 {[%clk 00:46:21]}
{[%emt 00:00:03]} exd5 {[%clk 00:44:15]} {[%emt 00:00:03]} 16. Be3 {[%clk
00:46:21]} {[%emt 00:00:09]} Kd7 {[%clk 00:43:11]} {[%emt 00:01:14]} 17. O-O-O
{[%clk 00:46:25]} {[%emt 00:00:06]} Kc6 {[%clk 00:43:12]} {[%emt 00:00:10]} 18.
Kb1 {[%clk 00:46:28]} {[%emt 00:00:07]} Be7 {[%clk 00:42:46]} {[%emt 00:00:35]}
19. Rc1+ {[%clk 00:46:29]} {[%emt 00:00:10]} Kb7 {[%clk 00:42:53]} {[%emt
00:00:02]} 20. Rhd1 {[%clk 00:46:11]} {[%emt 00:00:28]} Rhd8 {[%clk 00:42:31]}
{[%emt 00:00:32]} 21. Rd3 {[%clk 00:46:02]} {[%emt 00:00:19]} Rab8 {[%clk
00:38:33]} {[%emt 00:04:09]} 22. Rcd1 {[%clk 00:45:25]} {[%emt 00:00:46]} Kc6
{[%clk 00:33:56]} {[%emt 00:04:47]} 23. Bxa7 {[%clk 00:45:21]} {[%emt
00:00:14]} Rb5 {[%clk 00:33:34]} {[%emt 00:00:33]} 24. Bd4 {[%clk 00:45:17]}
{[%emt 00:00:14]} f6 {[%clk 00:33:32]} {[%emt 00:00:11]} 25. Rc3+ {[%clk
00:41:24]} {[%emt 00:04:03]} Kd7 {[%clk 00:32:46]} {[%emt 00:00:56]} 26. Rdc1
{[%clk 00:41:11]} {[%emt 00:00:24]} Bd6 {[%clk 00:32:30]} {[%emt 00:00:26]} 27.
h3 {[%clk 00:40:54]} {[%emt 00:00:26]} Rdb8 {[%clk 00:32:06]} {[%emt 00:00:34]}
28. b3 {[%clk 00:40:48]} {[%emt 00:00:17]} R8b7 {[%clk 00:30:51]} {[%emt
00:01:25]} 29. Rg1 {[%clk 00:39:35]} {[%emt 00:01:22]} Ke6 {[%clk 00:30:18]}
{[%emt 00:00:43]} 30. Kc2 {[%clk 00:37:35]} {[%emt 00:02:10]} Rb4 {[%clk
00:28:54]} {[%emt 00:01:34]} 31. Bc5 {[%clk 00:37:24]} {[%emt 00:00:21]} Bxc5
{[%clk 00:28:42]} {[%emt 00:00:24]} 32. Rxc5 {[%clk 00:37:32]} Rf4 {[%clk
00:28:44]} {[%emt 00:00:08]} 33. Rg3 {[%clk 00:37:30]} {[%emt 00:00:11]} h5
{[%clk 00:28:37]} {[%emt 00:00:18]} 34. Rc3 {[%clk 00:36:19]} {[%emt 00:01:21]}
d4 {[%clk 00:24:21]} {[%emt 00:04:26]} 35. Rd3 {[%clk 00:36:27]} {[%emt
00:00:01]} g5 {[%clk 00:23:02]} {[%emt 00:01:29]} 36. Rg1 {[%clk 00:34:25]}
{[%emt 00:02:11]} Rb5 {[%clk 00:22:36]} {[%emt 00:00:37]} 37. Rgd1 {[%clk
00:34:12]} {[%emt 00:00:23]} Rbf5 {[%clk 00:22:22]} {[%emt 00:00:24]} 38. Kd2
{[%clk 00:31:20]} {[%emt 00:03:01]} Rxf3 {[%clk 00:22:17]} {[%emt 00:00:16]} 39.
Rxf3 {[%clk 00:31:28]} {[%emt 00:00:02]} Rxf3 {[%clk 00:22:24]} {[%emt
00:00:02]} 40. Ke2 {[%clk 00:31:37]} {[%emt 00:00:02]} Rxh3 {[%clk 00:22:28]}
{[%emt 00:00:06]} 41. Rxd4 {[%clk 00:31:46]} h4 {[%clk 00:22:30]} {[%emt
00:00:08]} 42. Rd1 {[%clk 00:30:23]} {[%emt 00:01:34]} Rc3 {[%clk 00:22:07]}
{[%emt 00:00:33]} 43. Ra1 {[%clk 00:28:56]} {[%emt 00:01:37]} f5 {[%clk
00:21:46]} {[%emt 00:00:31]} 44. Kd2 {[%clk 00:27:47]} {[%emt 00:01:18]} Rf3
{[%clk 00:21:49]} {[%emt 00:00:05]} 45. Ke2 {[%clk 00:27:53]} {[%emt 00:00:06]}
g4 {[%clk 00:21:56]} {[%emt 00:00:03]} 46. Rc1 {[%clk 00:27:43]} {[%emt
00:00:21]} Kd5 {[%clk 00:21:43]} {[%emt 00:00:23]} 47. b4 {[%clk 00:27:27]}
{[%emt 00:00:25]} Ra3 {[%clk 00:21:28]} {[%emt 00:00:25]} 48. Rc5+ {[%clk
00:27:17]} {[%emt 00:00:20]} Ke4 {[%clk 00:21:32]} {[%emt 00:00:05]} 49. Rc4+
{[%clk 00:27:24]} {[%emt 00:00:04]} Ke5 {[%clk 00:21:40]} {[%emt 00:00:03]} 50.
Rc5+ {[%clk 00:25:06]} {[%emt 00:02:28]} Kf4 {[%clk 00:21:39]} {[%emt
00:00:10]} 51. Rc4+ {[%clk 00:24:10]} {[%emt 00:01:07]} Kg5 {[%clk 00:21:46]}
{[%emt 00:00:02]} 52. Rc2 {[%clk 00:24:12]} {[%emt 00:00:09]} h3 {[%clk
00:21:52]} {[%emt 00:00:03]} 53. Kf1 {[%clk 00:24:17]} {[%emt 00:00:06]} h2
{[%clk 00:16:11]} {[%emt 00:05:50]} 54. Kg2 {[%clk 00:24:23]} {[%emt 00:00:04]}
Rh3 {[%clk 00:16:17]} {[%emt 00:00:03]} 55. Rc1 {[%clk 00:23:32]} {[%emt
00:01:01]} f4 {[%clk 00:16:01]} {[%emt 00:00:27]} 56. b5 {[%clk 00:23:00]}
{[%emt 00:00:42]} Rh6 {[%clk 00:08:36]} {[%emt 00:07:34]} 57. Rc5+ {[%clk
00:22:39]} {[%emt 00:00:32]} Kh4 {[%clk 00:07:28]} {[%emt 00:01:18]} 58. Kxh2
{[%clk 00:22:36]} {[%emt 00:00:12]} Rd6 {[%clk 00:07:36]} {[%emt 00:00:03]} 59.
Rc2 {[%clk 00:22:12]} {[%emt 00:00:35]} Rd4 {[%clk 00:07:07]} {[%emt 00:00:39]}
60. Rb2 {[%clk 00:22:09]} {[%emt 00:00:13]} 1-0

[Event "FIDE U16 Olympiad_boards_81-124"]
[Site "Eindhoven, Netherlands"]
[Date "2023.08.14"]
[Round "3.30"]
[White "Zangrilli, Leonardo"]
[Black "Chiravanich, Pathee"]
[Result "0-1"]
[TimeControl "45min+10sec"]
[WhiteElo "1205"]
[BlackElo "1523"]

1. e4 {[%clk 00:45:18]} {[%emt 00:00:02]} c5 {[%clk 00:45:19]} {[%emt
00:00:02]} 2. Nf3 {[%clk 00:45:22]} {[%emt 00:00:06]} d6 {[%clk 00:45:27]}
{[%emt 00:00:01]} 3. d4 {[%clk 00:45:31]} {[%emt 00:00:02]} cxd4 {[%clk
00:45:34]} {[%emt 00:00:03]} 4. Nxd4 {[%clk 00:45:39]} {[%emt 00:00:01]} Nf6
{[%clk 00:45:40]} {[%emt 00:00:05]} 5. Nc3 {[%clk 00:45:46]} {[%emt 00:00:03]}
a6 {[%clk 00:45:45]} {[%emt 00:00:04]} 6. Be3 {[%clk 00:45:46]} {[%emt
00:00:11]} e5 {[%clk 00:45:32]} {[%emt 00:00:22]} 7. Nb3 {[%clk 00:45:41]}
{[%emt 00:00:16]} Be6 {[%clk 00:45:26]} {[%emt 00:00:15]} 8. f3 {[%clk
00:45:18]} {[%emt 00:00:35]} Nbd7 {[%clk 00:45:24]} {[%emt 00:00:11]} 9. Be2
{[%clk 00:44:22]} {[%emt 00:01:06]} Be7 {[%clk 00:45:30]} {[%emt 00:00:04]} 10.
Qd2 {[%clk 00:43:29]} {[%emt 00:01:03]} h5 {[%clk 00:44:38]} {[%emt 00:01:02]}
11. O-O-O {[%clk 00:41:12]} {[%emt 00:02:27]} Rc8 {[%clk 00:44:10]} {[%emt
00:00:37]} 12. h3 {[%clk 00:39:25]} {[%emt 00:01:58]} h4 {[%clk 00:43:16]}
{[%emt 00:01:04]} 13. Kb1 {[%clk 00:36:42]} {[%emt 00:02:53]} b5 {[%clk
00:42:14]} {[%emt 00:01:11]} 14. a3 {[%clk 00:35:59]} {[%emt 00:00:53]} Nb6
{[%clk 00:41:33]} {[%emt 00:00:51]} 15. Rdg1 {[%clk 00:29:06]} {[%emt
00:07:04]} Nc4 {[%clk 00:41:00]} {[%emt 00:00:42]} 16. Bxc4 {[%clk 00:29:13]}
{[%emt 00:00:04]} Bxc4 {[%clk 00:39:58]} {[%emt 00:01:12]} 17. g4 {[%clk
00:27:18]} {[%emt 00:02:06]} hxg3 {[%clk 00:40:05]} {[%emt 00:00:02]} 18. Rxg3
{[%clk 00:27:19]} {[%emt 00:00:09]} g6 {[%clk 00:39:47]} {[%emt 00:00:28]} 19.
Nd5 {[%clk 00:21:01]} {[%emt 00:06:28]} Bxd5 {[%clk 00:37:09]} {[%emt
00:02:47]} 20. exd5 {[%clk 00:21:10]} {[%emt 00:00:02]} Rh4 {[%clk 00:31:39]}
{[%emt 00:05:40]} 21. Bg5 {[%clk 00:19:34]} {[%emt 00:01:46]} Rhc4 {[%clk
00:27:54]} {[%emt 00:03:55]} 22. Bxf6 {[%clk 00:17:54]} {[%emt 00:01:50]} Bxf6
{[%clk 00:27:31]} {[%emt 00:00:33]} 23. c3 {[%clk 00:17:37]} {[%emt 00:00:26]}
Bg7 {[%clk 00:23:47]} {[%emt 00:03:54]} 24. Rg4 {[%clk 00:15:12]} {[%emt
00:02:36]} Qb6 {[%clk 00:23:07]} {[%emt 00:00:50]} 25. f4 {[%clk 00:12:44]}
{[%emt 00:02:38]} exf4 {[%clk 00:20:48]} {[%emt 00:02:29]} 26. Rxf4 {[%clk
00:11:43]} {[%emt 00:01:12]} Kf8 {[%clk 00:19:10]} {[%emt 00:01:47]} 27. h4
{[%clk 00:10:07]} {[%emt 00:01:45]} a5 {[%clk 00:16:04]} {[%emt 00:03:16]} 28.
h5 {[%clk 00:08:46]} {[%emt 00:01:32]} gxh5 {[%clk 00:14:37]} {[%emt 00:01:37]}
29. Rxh5 {[%clk 00:07:54]} {[%emt 00:01:02]} b4 {[%clk 00:12:32]} {[%emt
00:02:15]} 30. Rxc4 {[%clk 00:06:58]} {[%emt 00:01:06]} Rxc4 {[%clk 00:12:31]}
{[%emt 00:00:11]} 31. Qe2 {[%clk 00:05:42]} {[%emt 00:01:27]} Rc7 {[%clk
00:10:57]} {[%emt 00:01:42]} 32. axb4 {[%clk 00:04:28]} {[%emt 00:01:24]} axb4
{[%clk 00:10:54]} {[%emt 00:00:13]} 33. c4 {[%clk 00:04:19]} {[%emt 00:00:20]}
Qg1+ {[%clk 00:10:39]} {[%emt 00:00:24]} 34. Nc1 {[%clk 00:03:36]} {[%emt
00:00:54]} Qg6+ {[%clk 00:10:08]} {[%emt 00:00:40]} 35. Ka2 {[%clk 00:02:44]}
{[%emt 00:01:03]} Ra7+ {[%clk 00:10:06]} {[%emt 00:00:12]} 36. Kb3 {[%clk
00:02:48]} {[%emt 00:00:06]} Re7 {[%clk 00:09:45]} {[%emt 00:00:30]} 37. Qf3
{[%clk 00:01:43]} {[%emt 00:01:13]} Qg1 {[%clk 00:08:49]} {[%emt 00:01:09]} 38.
Nd3 {[%clk 00:00:52]} {[%emt 00:01:01]} Re3 {[%clk 00:08:06]} {[%emt 00:00:53]}
39. Qf5 {[%clk 00:00:58]} {[%emt 00:00:03]} Qd1+ {[%clk 00:07:31]} {[%emt
00:00:46]} 40. Kxb4 {[%emt 00:00:28]} Qd2+ {[%clk 00:06:37]} {[%emt 00:01:01]}
41. Kb5 {[%clk 00:00:36]} {[%emt 00:00:17]} Re8 {[%clk 00:05:27]} {[%emt
00:01:19]} 42. Qd7 {[%clk 00:00:19]} {[%emt 00:00:28]} Qxd3 {[%clk 00:05:01]}
{[%emt 00:00:35]} 43. Qxd6+ {[%clk 00:00:27]} {[%emt 00:00:02]} Kg8 {[%clk
00:05:06]} {[%emt 00:00:06]} 44. Rg5 {[%clk 00:00:16]} {[%emt 00:00:21]} Qb3+
{[%clk 00:04:56]} {[%emt 00:00:19]} 45. Kc5 {[%clk 00:00:20]} {[%emt 00:00:07]}
Rc8+ {[%clk 00:04:54]} {[%emt 00:00:12]} 0-1

[Event "FIDE U16 Olympiad_boards_81-124"]
[Site "Eindhoven, Netherlands"]
[Date "2023.08.14"]
[Round "3.31"]
[White "Jitwichian, Pataradit"]
[Black "Grima Bongailas, Isaac"]
[Result "1/2-1/2"]
[TimeControl "45min+10sec"]
[WhiteElo "1229"]
[BlackElo "1270"]

1. d4 {[%clk 00:45:17]} {[%emt 00:00:03]} Nf6 {[%clk 00:45:19]} {[%emt
00:00:02]} 2. c4 {[%clk 00:45:26]} c5 {[%clk 00:45:24]} {[%emt 00:00:05]} 3.
Nf3 {[%clk 00:45:34]} {[%emt 00:00:03]} cxd4 {[%clk 00:45:33]} {[%emt
00:00:01]} 4. Nxd4 {[%clk 00:45:42]} {[%emt 00:00:02]} e5 {[%clk 00:45:41]}
{[%emt 00:00:02]} 5. Nb5 {[%clk 00:45:38]} {[%emt 00:00:14]} d6 {[%clk
00:45:35]} {[%emt 00:00:17]} 6. Bg5 {[%clk 00:43:33]} {[%emt 00:02:14]} a6
{[%clk 00:43:43]} {[%emt 00:02:02]} 7. Bxf6 {[%clk 00:43:36]} {[%emt 00:00:07]}
gxf6 {[%clk 00:43:50]} {[%emt 00:00:03]} 8. N5c3 {[%clk 00:42:46]} {[%emt
00:01:00]} Bf5 {[%clk 00:41:31]} {[%emt 00:02:29]} 9. e4 {[%clk 00:42:49]}
{[%emt 00:00:06]} Be6 {[%clk 00:41:24]} {[%emt 00:00:17]} 10. Nd5 {[%clk
00:41:10]} {[%emt 00:01:50]} Nd7 {[%clk 00:39:21]} {[%emt 00:02:12]} 11. g3
{[%clk 00:40:20]} {[%emt 00:01:01]} Nb6 {[%clk 00:38:49]} {[%emt 00:00:42]} 12.
Nbc3 {[%clk 00:40:13]} {[%emt 00:00:16]} Bg7 {[%clk 00:33:59]} {[%emt
00:04:59]} 13. Qb3 {[%clk 00:34:54]} {[%emt 00:05:31]} Bxd5 {[%clk 00:30:21]}
{[%emt 00:03:48]} 14. Nxd5 {[%clk 00:34:47]} {[%emt 00:00:17]} Nxd5 {[%clk
00:30:17]} {[%emt 00:00:13]} 15. cxd5 {[%clk 00:34:53]} {[%emt 00:00:04]} Qd7
{[%clk 00:26:03]} {[%emt 00:04:25]} 16. Bg2 {[%clk 00:34:17]} {[%emt 00:00:45]}
Rc8 {[%clk 00:25:18]} {[%emt 00:00:53]} 17. O-O {[%clk 00:34:21]} {[%emt
00:00:09]} O-O {[%clk 00:25:03]} {[%emt 00:00:25]} 18. Rac1 {[%clk 00:34:30]}
{[%emt 00:00:02]} Rxc1 {[%clk 00:24:49]} {[%emt 00:00:24]} 19. Rxc1 {[%clk
00:34:38]} {[%emt 00:00:01]} Rc8 {[%clk 00:24:58]} {[%emt 00:00:02]} 20. Rxc8+
{[%clk 00:34:42]} {[%emt 00:00:07]} Qxc8 {[%clk 00:25:06]} 21. Qc3 {[%clk
00:34:26]} {[%emt 00:00:26]} Qd7 {[%clk 00:21:43]} {[%emt 00:03:28]} 22. Bf1
{[%clk 00:32:25]} {[%emt 00:02:16]} Kf8 {[%clk 00:17:29]} {[%emt 00:04:25]} 23.
h4 {[%clk 00:31:30]} {[%emt 00:01:04]} Ke7 {[%clk 00:13:01]} {[%emt 00:04:39]}
24. Kh2 {[%clk 00:31:38]} {[%emt 00:00:02]} Kd8 {[%clk 00:12:49]} {[%emt
00:00:22]} 25. Bh3 {[%clk 00:31:39]} {[%emt 00:00:08]} Qc7 {[%clk 00:12:42]}
{[%emt 00:00:18]} 26. Kg2 {[%clk 00:29:34]} {[%emt 00:02:14]} Qxc3 {[%clk
00:10:47]} {[%emt 00:02:06]} 27. bxc3 {[%clk 00:29:43]} Kc7 {[%clk 00:10:34]}
{[%emt 00:00:23]} 28. Kf3 {[%clk 00:29:50]} {[%emt 00:00:03]} Kd8 {[%clk
00:10:32]} {[%emt 00:00:13]} 29. Ke3 {[%clk 00:28:41]} {[%emt 00:01:18]} Kc7
{[%clk 00:09:13]} {[%emt 00:01:30]} 30. Kd3 {[%clk 00:28:13]} {[%emt 00:00:38]}
b5 {[%clk 00:09:06]} {[%emt 00:00:17]} 31. Bg4 {[%clk 00:28:22]} {[%emt
00:00:01]} Kb6 {[%clk 00:08:40]} {[%emt 00:00:36]} 32. Bh5 {[%clk 00:28:23]}
{[%emt 00:00:08]} Bh6 {[%clk 00:05:28]} {[%emt 00:03:23]} 33. Bxf7 {[%clk
00:28:03]} {[%emt 00:00:29]} Bc1 {[%clk 00:05:21]} {[%emt 00:00:17]} 34. Kc2
{[%clk 00:27:37]} {[%emt 00:00:37]} Ba3 {[%clk 00:05:27]} {[%emt 00:00:04]} 35.
f3 {[%clk 00:27:28]} {[%emt 00:00:19]} Bc5 {[%clk 00:05:25]} {[%emt 00:00:11]}
36. g4 {[%clk 00:27:36]} {[%emt 00:00:02]} h6 {[%clk 00:05:07]} {[%emt
00:00:29]} 37. Be8 {[%clk 00:24:52]} {[%emt 00:02:54]} b4 {[%clk 00:04:25]}
{[%emt 00:00:50]} 38. cxb4 {[%clk 00:23:39]} {[%emt 00:01:26]} Bxb4 {[%clk
00:04:29]} {[%emt 00:00:05]} 39. Kd1 {[%clk 00:23:44]} {[%emt 00:00:04]} Bc5
{[%clk 00:02:56]} {[%emt 00:01:43]} 40. Ke2 {[%clk 00:23:49]} {[%emt 00:00:06]}
a5 {[%clk 00:02:51]} {[%emt 00:00:15]} 41. a4 {[%clk 00:22:45]} {[%emt
00:01:14]} Bd4 {[%clk 00:02:48]} {[%emt 00:00:12]} 42. Kf1 {[%clk 00:22:53]}
{[%emt 00:00:02]} Kc5 {[%clk 00:02:42]} {[%emt 00:00:17]} 43. Kg2 {[%clk
00:23:00]} {[%emt 00:00:02]} Be3 {[%clk 00:02:46]} {[%emt 00:00:07]} 44. Kg3
{[%clk 00:23:05]} {[%emt 00:00:05]} Bf4+ {[%clk 00:02:55]} {[%emt 00:00:02]} 45.
Kf2 {[%clk 00:23:14]} {[%emt 00:00:01]} Kd4 {[%clk 00:02:44]} {[%emt 00:00:21]}
1/2-1/2